bitfinex/quotes_SOLUSD_20250924
["timestamp","ask_amount","ask_price","bid_price","bid_amount"]
[1758729922313,0.2,214.01,213.99,4.67311556]
[1758729922678,0.2,214.01,213.99,5.36311556]
[1758729922982,0.2,214.01,213.99,4.67311556]
[1758729923402,6.17493362,214.01,213.99,4.67311556]
[1758729923791,5.97493362,214.0,213.97,4.67355236]
[1758729923982,5.30493362,213.99,213.97,4.67355236]
[1758729924376,5.97493362,214.0,213.95,16.35856744]
[1758729924618,5.50493362,214.01,213.96,0.69]
[1758729925110,5.30493362,214.0,213.96,0.69]
[1758729925782,42.52493362,214.0,213.96,0.69]
[1758729926084,42.52493362,214.0,213.95,16.35856744]
[1758729926289,43.19493362,214.0,213.95,16.35856744]
[1758729926601,5.30493362,213.97,213.95,16.35856744]
[1758729926817,5.30493362,213.96,213.95,4.67398924]
[1758729927185,5.30493362,213.98,213.95,4.67398924]
[1758729927382,37.22,213.97,213.95,4.67398924]
[1758729927696,37.22,213.97,213.95,16.35896236]
[1758729927893,37.22,213.98,213.95,21.66389598]
[1758729928092,37.22,213.99,213.95,16.35896236]
[1758729928317,37.22,213.99,213.95,17.04896236]
[1758729929307,42.52493362,213.99,213.95,17.04896236]
[1758729929503,42.52493362,213.99,213.95,16.35896236]
[1758729930104,42.52493362,213.99,213.95,4.67398924]
[1758729930298,5.97493362,213.98,213.95,4.67398924]
[1758729930634,37.22,214.0,213.96,5.99493362]
[1758729930808,37.22,214.0,213.95,4.67398924]
[1758729930809,37.22,214.0,213.97,5.99493362]
[1758729931143,37.22,214.0,213.97,0.69]
[1758729931497,0.67,213.99,213.95,4.67398924]
[1758729931732,42.52493362,214.0,213.95,16.35896236]
[1758729932035,42.52493362,214.0,213.95,17.04896236]
[1758729932600,43.19493362,214.0,213.95,16.35896236]
[1758729933034,5.97493362,214.0,213.95,16.35896236]
[1758729933233,0.2,214.01,213.99,5.30493362]
[1758729933439,5.30493362,214.08,214.01,5.30493362]
[1758729933647,42.54493362,214.08,214.01,5.30493362]
[1758729934025,5.30493362,214.07,214.0,0.69]
[1758729934346,5.30493362,214.05,213.96,26.0]
[1758729934548,42.52493362,214.04,213.98,16.35666884]
[1758729935021,5.30493362,214.03,213.98,16.35666884]
[1758729935217,0.67,214.03,213.98,16.35666884]
[1758729935422,0.67,214.03,213.98,17.04666884]
[1758729935633,0.67,214.03,213.98,4.67333395]
[1758729935634,5.97493362,214.02,213.98,4.67333395]
[1758729935824,5.97493362,214.01,213.98,4.67333395]
[1758729936026,0.67,214.01,213.98,4.67333395]
[1758729936226,5.30493362,214.02,213.98,4.67333395]
[1758729936439,37.22,214.01,213.98,16.35666884]
[1758729936626,5.97493362,214.0,213.97,4.67355236]
[1758729936825,5.97493362,213.99,213.97,4.67355236]
[1758729937141,5.97493362,213.99,213.95,11.68470032]
[1758729937142,5.97493362,213.99,213.96,4.67374332]
[1758729937342,5.97493362,213.98,213.94,4.67414603]
[1758729937646,37.22,213.97,213.94,4.67414603]
[1758729937822,42.52493362,213.97,213.94,4.67414603]
[1758729938022,37.22,213.97,213.94,4.67414603]
[1758729938222,37.22,213.97,213.94,16.35966533]
[1758729938541,37.22,213.97,213.94,17.04966533]
[1758729938939,42.52493362,213.97,213.94,4.67414603]
[1758729939325,37.22,213.97,213.94,4.67414603]
[1758729939521,37.22,213.97,213.92,4.67464472]
[1758729939522,5.30493362,213.95,213.92,4.67464472]
[1758729939764,0.81216157,213.96,213.82,0.69]
[1758729939765,5.30493362,213.93,213.82,0.69]
[1758729939926,5.30493362,213.88,213.84,3.13286862]
[1758729940126,5.30493362,213.9,213.85,17.0566121]
[1758729940328,37.89,213.92,213.85,16.3666121]
[1758729940329,5.30493362,213.89,213.85,16.3666121]
[1758729940520,37.22,213.9,213.85,17.0566121]
[1758729940726,2.15764937,213.89,213.85,17.0566121]
[1758729942222,2.15764937,213.89,213.86,0.69]
[1758729942741,5.31232414,213.89,213.87,4.67573759]
[1758729943255,5.31232414,213.89,213.87,16.36508158]
[1758729943465,0.67,213.92,213.87,16.36508158]
[1758729943672,37.22,213.91,213.88,0.69]
[1758729943847,37.22,213.91,213.87,16.36508158]
[1758729944052,5.31232414,213.9,213.87,17.05508158]
[1758729944241,5.31232414,213.88,213.87,4.67573759]
[1758729944648,5.31232414,213.88,213.86,4.67594954]
[1758729944869,43.20232414,213.87,213.86,4.67594954]
[1758729945275,43.20232414,213.87,213.82,18.81292451]
[1758729945455,5.31232414,213.84,213.82,18.81292451]
[1758729946164,5.31232414,213.85,213.82,18.81292451]
[1758729946361,37.22,213.87,213.82,2.4440161]
[1758729946362,5.31232414,213.83,213.82,2.4440161]
[1758729946566,42.53232414,213.83,213.82,2.4440161]
[1758729946869,43.20232414,213.83,213.82,2.4440161]
[1758729947075,43.20232414,213.83,213.77,4.6777109]
[1758729947374,5.31232414,213.8,213.78,2.44463403]
[1758729948474,5.31232414,213.81,213.78,2.44463403]
[1758729948871,5.31232414,213.81,213.79,4.67748725]
[1758729950186,42.55232414,213.8,213.78,2.44463403]
[1758729950390,42.55232414,213.8,213.77,4.67779398]
[1758729951286,5.31232414,213.79,213.77,4.67779398]
[1758729951674,5.31232414,213.78,213.77,4.67779398]
[1758729951989,5.31232414,213.79,213.77,4.67779398]
[1758729952666,5.31232414,213.78,213.77,4.67779398]
[1758729952987,5.31232414,213.78,213.76,4.77801179]
[1758729953380,37.24,213.8,213.76,4.77801179]
[1758729953596,5.31232414,213.78,213.76,4.77801179]
[1758729954201,37.9,213.8,213.76,4.77801179]
[1758729954380,37.9,213.8,213.76,16.47337107]
[1758729954706,134.74216157,213.84,213.77,0.71]
[1758729954707,0.66,213.83,213.77,0.71]
[1758729954878,42.55232414,213.82,213.78,16.37197118]
[1758729955076,5.31232414,213.81,213.78,16.37197118]
[1758729955273,37.24,213.82,213.78,16.37197118]
[1758729955475,5.31232414,213.81,213.78,16.37197118]
[1758729956491,5.31232414,213.79,213.77,4.67788369]
[1758729956687,5.31232414,213.79,213.77,16.37269587]
[1758729957207,37.9,213.82,213.77,16.37269587]
[1758729957386,5.31232414,213.8,213.77,16.37269587]
[1758729957704,5.31232414,213.8,213.77,17.08269587]
[1758729958205,134.6,213.79,213.77,17.08269587]
[1758729958589,134.6,213.79,213.77,16.37269587]
[1758729958979,134.6,213.79,213.77,17.08269587]
[1758729959499,171.84,213.79,213.77,17.08269587]
[1758729959694,171.84,213.79,213.77,16.37269587]
[1758729960070,134.6,213.79,213.78,0.65]
[1758729960272,70.73706313,213.79,213.78,0.65]
[1758729960573,45.44890703,213.79,213.78,5.96232414]
[1758729960895,45.44890703,213.79,213.78,10.64003019]
[1758729961495,17.92517767,213.91,213.78,10.64003019]
[1758729961496,37.24,213.83,213.78,45.72282558]
[1758729961680,37.24,213.84,213.81,5.31232414]
[1758729961881,37.24,213.84,213.81,0.65]
[1758729962591,37.24,213.84,213.79,0.65]
[1758729962778,37.24,213.84,213.8,0.65]
[1758729963093,37.24,213.84,213.81,17.019674]
[1758729963677,37.24,213.84,213.81,16.369674]
[1758729964292,5.31232414,213.86,213.81,16.369674]
[1758729964488,5.31232414,213.89,213.83,5.31232414]
[1758729964794,39.39763289,213.88,213.83,0.65]
[1758729964999,39.39763289,213.88,213.84,4.67639356]
[1758729965188,2.15763289,213.86,213.84,4.67639356]
[1758729965391,37.24,213.85,213.84,4.67639356]
[1758729965880,37.24,213.85,213.79,11.69362323]
[1758729965881,40.11763289,213.85,213.79,11.69362323]
[1758729966083,2.15763289,213.81,213.79,11.69362323]
[1758729966289,4.67558416,213.88,213.79,11.69362323]
[1758729966290,37.24,213.82,213.79,11.69362323]
[1758729966475,2.15763289,213.82,213.79,11.69362323]
[1758729966807,37.96,213.81,213.77,4.67792487]
[1758729966976,2.15763289,213.79,213.77,4.67792487]
[1758729967302,2.15763289,213.8,213.77,4.67792487]
[1758729967912,2.15763289,213.8,213.77,16.37273705]
[1758729968708,37.24,213.81,213.77,16.37273705]
[1758729969096,37.96,213.81,213.77,16.37273705]
[1758729969478,37.96,213.81,213.77,4.67792487]
[1758729969996,37.96,213.81,213.77,16.37273705]
[1758729970180,0.72,213.8,213.77,16.37273705]
[1758729970489,0.72,213.8,213.77,4.67792487]
[1758729970686,37.24,213.81,213.77,4.67792487]
[1758729970994,37.96,213.81,213.77,16.37273705]
[1758729971689,37.24,213.81,213.77,19.18036994]
[1758729973000,37.24,213.81,213.77,16.37273705]
[1758729973001,37.96,213.81,213.77,16.37273705]
[1758729973182,37.24,213.81,213.77,17.02273705]
[1758729973377,136.75763289,213.82,213.77,17.02273705]
[1758729973575,37.24,213.8,213.77,17.02273705]
[1758729974006,136.75763289,213.82,213.77,18.53036994]
[1758729974007,134.6,213.82,213.77,18.53036994]
[1758729974182,37.24,213.81,213.8,2.15763289]
[1758729974388,37.24,213.81,213.8,2.80763289]
[1758729975205,134.6,213.82,213.8,2.80763289]
[1758729975502,37.24,213.88,213.81,6.8346826]
[1758729975707,37.24,213.88,213.86,2.15763289]
[1758729976689,134.6,213.89,213.87,2.15763289]
[1758729976911,171.84,213.89,213.87,2.15763289]
[1758729977088,37.24,213.89,213.87,2.15763289]
[1758729977890,37.24,213.89,213.85,16.3666121]
[1758729978092,0.72,213.88,213.85,4.67617488]
[1758729978395,37.24,213.89,213.85,4.67617488]
[1758729978600,0.72,213.88,213.85,4.67617488]
[1758729978810,39.39763289,213.89,213.85,4.67617488]
[1758729978991,0.72,213.87,213.85,4.67617488]
[1758729979804,40.11763289,213.89,213.84,4.67639356]
[1758729980010,0.72,213.88,213.84,4.67639356]
[1758729980388,0.72,213.88,213.84,16.36737747]
[1758729980610,0.72,213.88,213.84,4.67639356]
[1758729980920,0.68,213.87,213.84,16.36737747]
[1758729981097,37.22,213.86,213.84,16.36737747]
[1758729981299,0.68,213.87,213.81,12.34221954]
[1758729981523,37.22,213.86,213.82,4.67683097]
[1758729981807,37.22,213.86,213.83,2.15763289]
[1758729982122,26.0,213.91,213.85,2.15763289]
[1758729982305,37.22,213.9,213.85,2.15763289]
[1758729982487,37.9,213.9,213.85,2.15763289]
[1758729982681,0.68,213.89,213.84,3.37128574]
[1758729983107,0.68,213.89,213.84,4.04128574]
[1758729983802,0.68,213.89,213.85,16.3666121]
[1758729984202,37.22,213.9,213.85,20.40789784]
[1758729984605,3.37128574,213.93,213.87,3.37128574]
[1758729984913,37.22,213.92,213.87,4.04128574]
[1758729985113,37.9,213.92,213.87,4.04128574]
[1758729985710,0.68,213.92,213.87,4.04128574]
[1758729985890,37.9,213.91,213.88,4.67551898]
[1758729986086,37.9,213.91,213.86,4.67577931]
[1758729986087,0.68,213.9,213.86,4.67577931]
[1758729986291,37.22,213.89,213.86,5.34577931]
[1758729986511,37.22,213.89,213.86,17.03566989]
[1758729986910,37.22,213.89,213.86,20.40695563]
[1758729987207,37.22,213.89,213.87,0.67]
[1758729987401,37.22,213.89,213.87,4.04128574]
[1758729988006,37.22,213.89,213.86,16.36566989]
[1758729988007,134.6,213.91,213.88,20.40560217]
[1758729988212,37.22,213.9,213.89,4.04128574]
[1758729989004,37.22,213.9,213.88,4.67551898]
[1758729989400,37.22,213.9,213.88,8.71680472]
[1758729990714,134.6,213.91,213.88,20.40560217]
[1758729990897,134.6,213.91,213.9,3.37128574]
[1758729991094,134.6,213.91,213.9,4.04128574]
[1758729992214,134.6,213.91,213.85,11.6899699]
[1758729992215,0.68,213.91,213.85,11.6899699]
[1758729992414,0.68,213.91,213.86,8.04724197]
[1758729992638,37.22,213.92,213.86,4.67595623]
[1758729992639,4.05128574,213.9,213.86,4.67595623]
[1758729992802,3.37128574,213.88,213.82,3.37128574]
[1758729992996,37.88,213.87,213.82,3.37128574]
[1758729993190,37.38,213.87,213.82,3.37128574]
[1758729993423,3.37128574,213.85,213.79,8.04877299]
[1758729993618,40.57128574,213.84,213.79,4.67748725]
[1758729993935,41.25128574,213.83,213.77,8.04902244]
[1758729994129,37.2,213.82,213.77,4.6777367]
[1758729994337,3.37128574,213.81,213.77,4.6777367]
[1758729994503,41.25128574,213.82,213.77,4.6777367]
[1758729994708,0.68,213.81,213.77,4.6777367]
[1758729994909,0.68,213.81,213.77,8.04902244]
[1758729995126,26.0,213.86,213.79,3.37128574]
[1758729995324,37.2,213.85,213.8,3.37128574]
[1758729995635,3.37128574,213.87,213.81,3.37128574]
[1758729995830,37.2,213.86,213.81,3.37128574]
[1758729996040,37.2,213.85,213.81,3.37128574]
[1758729996737,37.88,213.85,213.81,3.37128574]
[1758729996929,37.88,213.85,213.82,4.67683097]
[1758729997437,0.68,213.84,213.8,4.67715604]
[1758729997618,3.37128574,213.84,213.8,4.67715604]
[1758729997823,0.68,213.83,213.8,4.67715604]
[1758729998142,0.68,213.83,213.78,3.37128574]
[1758729998143,37.88,213.82,213.78,8.0488276]
[1758729998323,37.88,213.82,213.78,19.74309273]
[1758729999444,37.88,213.82,213.78,20.41309273]
[1758729999445,37.2,213.82,213.78,20.41309273]
[1758729999947,0.68,213.81,213.76,0.1]
[1758730000137,40.57128574,213.8,213.76,0.1]
[1758730000312,0.68,213.79,213.76,0.1]
[1758730000512,0.68,213.78,213.76,0.1]
[1758730000736,37.88,213.77,213.76,0.1]
[1758730001546,37.2,213.77,213.76,0.1]
[1758730001743,37.2,213.77,213.76,4.77814371]
[1758730002050,37.88,213.77,213.76,0.1]
[1758730002350,37.2,213.77,213.76,4.77814371]
[1758730005732,0.68,213.79,213.76,0.1]
[1758730005927,37.2,213.78,213.76,0.1]
[1758730006164,37.2,213.78,213.76,4.77812963]
[1758730007357,0.68,213.77,213.76,0.1]
[1758730007642,135.28,213.77,213.76,0.1]
[1758730007949,0.68,213.77,213.76,0.1]
[1758730008442,4.05128574,213.77,213.76,0.1]
[1758730009349,26.0,213.77,213.76,0.1]
[1758730009558,63.2,213.77,213.76,0.1]
[1758730010046,4.05128574,213.79,213.76,4.77814371]
[1758730010249,37.2,213.78,213.76,4.77814371]
[1758730010542,37.2,213.78,213.76,0.1]
[1758730010746,37.88,213.78,213.76,4.77813293]
[1758730011040,37.88,213.78,213.76,0.1]
[1758730012535,41.25128574,213.78,213.76,0.1]
[1758730012738,4.07128574,213.77,213.76,0.1]
[1758730016340,8.74921061,213.77,213.76,0.1]
[1758730016649,4.07128574,213.77,213.76,0.1]
[1758730017039,0.7,213.77,213.76,0.1]
[1758730017237,63.9,213.77,213.76,0.1]
[1758730017451,63.2,213.77,213.76,0.1]
[1758730017646,37.2,213.77,213.76,0.75]
[1758730017852,4.07128574,213.82,213.76,4.12128574]
[1758730018055,3.37128574,213.84,213.78,3.37128574]
[1758730018243,37.2,213.83,213.78,4.02128574]
[1758730018448,0.7,213.85,213.79,0.65]
[1758730018649,40.57128574,213.84,213.79,0.65]
[1758730018851,41.27128574,213.84,213.78,3.37128574]
[1758730019149,40.57128574,213.84,213.78,8.04899179]
[1758730019335,3.37128574,213.83,213.78,4.67770605]
[1758730019538,3.37128574,213.83,213.79,0.65]
[1758730019731,37.2,213.82,213.8,3.37128574]
[1758730020037,37.2,213.82,213.81,0.67]
[1758730020230,3.37128574,213.86,213.81,0.67]
[1758730020458,37.2,213.85,213.82,4.04128574]
[1758730020647,37.2,213.85,213.78,16.37197118]
[1758730020648,37.2,213.85,213.83,4.04128574]
[1758730020961,37.2,213.85,213.84,0.67]
[1758730021256,37.2,213.85,213.84,5.34639356]
[1758730021763,134.6,213.91,213.84,20.40866321]
[1758730022060,37.2,213.9,213.85,4.04128574]
[1758730022249,37.2,213.9,213.86,0.67]
[1758730022637,134.6,213.91,213.86,0.67]
[1758730022836,0.66,213.98,213.89,3.37128574]
[1758730023038,40.57128574,213.97,213.92,4.67464472]
[1758730023254,0.66,213.96,213.92,4.67464472]
[1758730023563,3.37128574,213.98,213.93,0.67]
[1758730023736,37.18,213.97,213.93,4.04128574]
[1758730023945,37.18,213.96,213.94,0.67]
[1758730024367,0.66,214.04,213.95,4.04128574]
[1758730024666,63.18,214.03,213.96,4.04128574]
[1758730024957,3.37128574,214.02,213.96,4.04128574]
[1758730025166,4.03128574,214.02,213.96,5.34358588]
[1758730025333,4.03128574,214.02,213.96,0.67]
[1758730025538,4.03128574,214.02,213.93,3.37128574]
[1758730025539,3.37128574,214.0,213.93,3.37128574]
[1758730025753,37.18,213.99,213.93,3.37128574]
[1758730026058,40.55128574,213.99,213.93,3.37128574]
[1758730026761,40.55128574,213.99,213.92,20.40254227]
[1758730026973,40.55128574,213.99,213.93,4.04128574]
[1758730027568,37.18,213.99,213.94,8.04549346]
[1758730027775,37.84,213.99,213.94,8.04549346]
[1758730028342,37.84,213.99,213.93,8.71569486]
[1758730029259,41.21128574,213.99,213.93,8.71569486]
[1758730029441,41.21128574,213.99,213.93,5.34440912]
[1758730029642,3.37128574,213.97,213.91,4.67486326]
[1758730029874,4.03128574,213.97,213.91,4.67486326]
[1758730030548,0.66,213.97,213.92,3.37128574]
[1758730031172,4.03128574,213.97,213.91,19.73330715]
[1758730031763,4.03128574,213.97,213.91,8.046149]
[1758730031963,4.03128574,213.97,213.9,4.04128574]
[1758730032163,3.37128574,213.96,213.9,0.67]
[1758730032357,40.53128574,213.95,213.88,4.04128574]
[1758730032562,37.16,213.95,213.89,3.37128574]
[1758730032964,37.16,213.95,213.88,0.67]
[1758730032965,37.16,213.95,213.9,4.04128574]
[1758730033173,37.16,213.95,213.91,0.67]
[1758730033763,37.16,213.95,213.92,4.67464472]
[1758730034570,0.66,214.0,213.93,0.67]
[1758730034773,3.37128574,213.98,213.93,0.67]
[1758730034983,66.53128574,213.99,213.93,4.04128574]
[1758730035283,137.97128574,213.98,213.93,0.67]
[1758730035485,37.16,213.97,213.93,0.67]
[1758730035691,3.37128574,213.96,213.91,4.67485202]
[1758730035893,3.37128574,213.95,213.91,4.67485202]
[1758730036262,4.03128574,213.95,213.91,4.67485202]
[1758730036466,4.03128574,213.95,213.9,4.67505633]
[1758730036675,37.16,213.94,213.9,4.67505633]
[1758730036875,37.16,213.94,213.91,0.67]
[1758730037069,37.16,213.93,213.91,0.67]
[1758730037889,37.16,213.93,213.9,4.67505633]
[1758730038089,37.16,213.93,213.88,4.67550897]
[1758730038257,4.03128574,213.92,213.88,4.67550897]
[1758730038586,3.37128574,213.91,213.88,4.67550897]
[1758730038775,4.03128574,213.91,213.87,4.67572741]
[1758730039157,41.83461044,213.93,213.87,5.34572741]
[1758730039374,3.37128574,213.91,213.87,5.34572741]
[1758730040086,4.03128574,213.9,213.84,0.67]
[1758730040385,3.37128574,213.91,213.84,4.04128574]
[1758730040586,3.37128574,213.9,213.84,4.04128574]
[1758730040775,37.14,213.89,213.84,0.67]
[1758730040974,37.14,213.89,213.85,0.68]
[1758730041379,37.14,213.89,213.83,16.96687975]
[1758730041380,4.04128574,213.88,213.83,4.67657968]
[1758730041573,4.04128574,213.88,213.83,5.35657968]
[1758730041976,3.37128574,213.86,213.81,4.67704971]
[1758730042292,41.18128574,213.85,213.81,4.67704971]
[1758730042490,0.67,213.88,213.81,4.67704971]
[1758730042674,0.67,213.88,213.82,0.68]
[1758730042675,40.51128574,213.87,213.82,0.68]
[1758730042875,0.67,213.86,213.81,4.67704971]
[1758730043080,4.04128574,213.86,213.81,4.67704971]
[1758730043386,4.04128574,213.85,213.79,8.72860055]
[1758730043997,3.37128574,213.86,213.79,20.42231868]
[1758730044174,3.37128574,213.86,213.8,3.37128574]
[1758730044370,37.14,213.85,213.8,3.37128574]
[1758730044668,37.14,213.85,213.8,2.15837345]
[1758730044875,37.81,213.85,213.8,0.68]
[1758730045595,37.14,213.85,213.81,0.68]
[1758730045966,37.14,213.85,213.82,4.67683097]
[1758730046592,37.14,213.85,213.81,5.35703246]
[1758730046893,37.14,213.85,213.81,0.68]
[1758730047078,39.96837345,213.85,213.81,4.67695686]
[1758730047983,39.96837345,213.85,213.8,4.67726847]
[1758730048394,39.96837345,213.85,213.81,0.68]
[1758730048594,39.96837345,213.85,213.8,4.67726847]
[1758730048972,39.96837345,213.85,213.8,5.35726847]
[1758730049175,39.96837345,213.85,213.77,4.67792487]
[1758730049176,2.15837345,213.81,213.77,4.67792487]
[1758730049391,37.14,213.81,213.77,4.67792487]
[1758730049597,37.81,213.81,213.77,4.67792487]
[1758730049786,2.15837345,213.79,213.76,0.1]
[1758730049989,2.15837345,213.77,213.76,0.1]
[1758730050295,39.96837345,213.77,213.76,0.1]
[1758730052197,44.64629832,213.77,213.76,0.1]
[1758730053607,13.59559401,213.76,213.74,0.1]
[1758730053805,152.51234091,213.75,213.74,0.1]
[1758730054131,152.51234091,213.75,213.73,0.1]
[1758730054132,18.27417546,213.74,213.73,0.1]
[1758730054345,22.59092236,213.74,213.73,0.1]
[1758730054507,23.26092236,213.74,213.73,0.1]
[1758730054707,5.34858145,213.74,213.73,0.1]
[1758730054907,65.96837345,213.74,213.73,0.1]
[1758730055131,70.6469549,213.74,213.73,0.1]
[1758730056217,86.40092236,213.74,213.73,0.1]
[1758730056832,82.08417546,213.74,213.73,0.1]
[1758730057024,86.40092236,213.74,213.73,0.1]
[1758730057408,70.6469549,213.74,213.73,0.1]
[1758730059227,65.29837345,213.74,213.73,0.1]
[1758730061732,39.29837345,213.74,213.73,0.1]
[1758730061938,43.9769549,213.74,213.73,0.1]
[1758730062438,39.29837345,213.74,213.73,0.1]
[1758730062632,44.6469549,213.74,213.73,0.1]
[1758730063820,42.48858145,213.74,213.73,0.1]
[1758730064022,70.6469549,213.74,213.73,0.1]
[1758730064340,44.6469549,213.74,213.73,0.1]
[1758730065015,39.96837345,213.74,213.73,0.1]
[1758730065217,44.6469549,213.74,213.73,0.1]
[1758730065540,35.66532835,213.74,213.73,0.1]
[1758730065728,46.80532835,213.74,213.73,0.1]
[1758730066451,43.9769549,213.74,213.73,0.1]
[1758730066749,39.29837345,213.74,213.73,0.1]
[1758730067434,65.29837345,213.74,213.73,0.1]
[1758730067639,63.14,213.74,213.73,0.1]
[1758730067837,65.29837345,213.74,213.73,0.1]
[1758730068651,26.0,213.74,213.73,0.78]
[1758730068854,3.72692912,213.82,213.73,5.45880035]
[1758730069062,26.0,213.77,213.74,0.68]
[1758730069379,2.15837345,213.79,213.74,0.68]
[1758730069550,37.14,213.78,213.74,0.68]
[1758730070167,134.6,213.8,213.74,0.68]
[1758730070336,37.14,213.79,213.75,2.15837345]
[1758730070542,134.6,213.87,213.78,16.37197118]
[1758730070744,2.15837345,213.85,213.79,2.87837345]
[1758730071039,37.14,213.84,213.8,0.72]
[1758730071244,2.15837345,213.85,213.8,0.72]
[1758730071460,37.14,213.84,213.8,0.72]
[1758730071640,36.52,213.89,213.81,2.15837345]
[1758730071846,37.14,213.87,213.82,0.72]
[1758730072542,37.14,213.87,213.82,5.3966226]
[1758730072748,37.14,213.87,213.83,0.72]
[1758730072951,39.29837345,213.87,213.83,0.72]
[1758730073264,39.29837345,213.87,213.82,4.6766226]
[1758730073265,2.15837345,213.86,213.82,4.6766226]
[1758730073468,37.8,213.87,213.8,0.72]
[1758730073469,2.15837345,213.83,213.8,5.39715972]
[1758730073637,2.15837345,213.81,213.79,4.67746806]
[1758730073842,37.12,213.8,213.79,4.67746806]
[1758730074166,37.12,213.8,213.76,4.67814371]
[1758730074336,37.12,213.8,213.77,0.72]
[1758730074539,37.12,213.8,213.78,0.72]
[1758730074741,37.12,213.8,213.79,5.39748725]
[1758730075140,37.12,213.8,213.76,11.69535928]
[1758730075352,37.12,213.8,213.77,5.39792487]
[1758730075671,37.12,213.8,213.78,0.72]
[1758730076056,37.12,213.8,213.79,0.72]
[1758730076745,171.72,213.8,213.79,4.67748725]
[1758730077147,171.72,213.8,213.79,5.39748725]
[1758730077349,28.15837345,213.86,213.79,19.24957883]
[1758730077544,37.12,213.85,213.8,0.72]
[1758730077961,39.27837345,213.85,213.81,0.72]
[1758730078145,2.15837345,213.83,213.79,5.39748725]
[1758730078358,37.12,213.82,213.8,0.72]
[1758730078673,37.12,213.82,213.81,4.67704971]
[1758730079057,37.12,213.82,213.81,5.39704971]
[1758730080177,2.15837345,213.84,213.78,0.67]
[1758730080378,39.25837345,213.83,213.78,0.67]
[1758730080678,37.1,213.86,213.83,16.36814291]
[1758730080858,37.1,213.86,213.85,2.15837345]
[1758730081063,171.7,213.87,213.85,2.82837345]
[1758730081376,171.7,213.87,213.85,0.67]
[1758730081575,171.7,213.87,213.86,0.67]
[1758730082768,171.7,213.87,213.86,5.34595623]
[1758730084357,2.15837345,213.98,213.88,2.82837345]
[1758730084656,37.1,213.97,213.92,2.15837345]
[1758730084870,37.1,213.96,213.93,17.03049174]
[1758730085247,2.15837345,213.99,213.94,0.67]
[1758730085450,37.1,213.98,213.95,0.67]
[1758730085677,37.1,213.97,213.93,4.67442621]
[1758730085978,39.25837345,213.97,213.92,0.67]
[1758730086177,39.25837345,213.97,213.91,4.67486326]
[1758730086365,2.82837345,213.96,213.91,4.67486326]
[1758730087302,0.67,213.96,213.91,4.67486326]
[1758730087775,2.15837345,213.96,213.91,4.67486326]
[1758730088078,2.82837345,213.96,213.91,4.67486326]
[1758730088376,0.67,213.95,213.91,4.67486326]
[1758730088856,37.08,213.94,213.91,4.67486326]
[1758730089266,37.08,213.94,213.91,5.34486326]
[1758730089979,11.88115129,214.02,213.92,2.82837345]
[1758730089980,2.15837345,213.98,213.92,2.82837345]
[1758730090167,0.2,214.02,213.97,2.15837345]
[1758730090372,0.2,214.02,214.0,2.15837345]
[1758730090588,0.2,214.02,213.99,2.15837345]
[1758730091159,0.2,214.02,213.97,2.15837345]
[1758730091362,0.2,214.02,213.98,4.67333395]
[1758730091688,0.2,214.02,213.96,2.15837345]
[1758730092490,26.0,214.01,213.96,2.15837345]
[1758730092673,26.67,214.01,213.96,2.15837345]
[1758730092875,26.0,213.97,213.95,16.35896236]
[1758730093385,63.75,214.0,213.95,16.35896236]
[1758730093793,63.75,214.0,213.95,4.67398924]
[1758730093994,26.0,213.97,213.94,4.67419636]
[1758730094288,63.08,214.0,213.94,7.50256981]
[1758730094466,63.08,214.0,213.94,5.34419636]
[1758730094667,63.75,214.0,213.94,7.50256981]
[1758730095086,65.90837345,214.0,213.94,7.50256981]
[1758730095291,63.75,214.0,213.94,7.50256981]
[1758730095696,63.75,214.0,213.94,6.83256981]